bitfinex-derivatives/quotes_SOLF0:USTF0_20250905
["timestamp","ask_amount","ask_price","bid_price","bid_amount"]
[1757068272620,0.03200668,206.2,206.17,7.42]
[1757068273025,0.03200668,206.2,206.16,8.41625181]
[1757068274424,0.03200668,206.2,206.17,7.42]
[1757068274824,0.03200668,206.2,206.16,8.41625181]
[1757068275225,0.03200668,206.2,206.17,7.42]
[1757068276228,0.03200668,206.2,206.16,8.41625181]
[1757068276426,0.03200668,206.2,206.17,7.42]
[1757068276627,0.03200668,206.2,206.16,8.41625181]
[1757068277028,0.03200668,206.2,206.17,11.7848]
[1757068277227,0.03200668,206.2,206.17,4.3648]
[1757068277423,13.50027109,206.31,206.19,2.07029986]
[1757068277623,13.50027109,206.31,206.2,7.42]
[1757068277823,8.11,206.3,206.21,7.42]
[1757068278429,8.11,206.3,206.21,4.364]
[1757068278628,8.11,206.3,206.23,0.03345826]
[1757068278930,8.11,206.3,206.24,7.47]
[1757068285028,8.11,206.3,206.23,0.03345826]
[1757068287433,8.11,206.3,206.23,7.50345826]
[1757068291234,8.11,206.3,206.23,0.03345826]
[1757068291631,29.97027109,206.37,206.23,0.03345826]
[1757068291632,7.39,206.25,206.23,0.03345826]
[1757068292134,7.39,206.25,206.2,4.05115181]
[1757068292336,7.39,206.25,206.22,0.03364555]
[1757068295440,7.39,206.29,206.22,0.03364555]
[1757068295640,7.39,206.25,206.22,0.03364555]
[1757068296042,2.07029986,206.26,206.22,0.03364555]
[1757068296234,7.39,206.25,206.22,7.50364555]
[1757068296441,2.07029986,206.26,206.22,7.50364555]
[1757068296646,7.39,206.25,206.22,7.50364555]
[1757068297040,2.07029986,206.26,206.22,7.50364555]
[1757068297242,5.39027109,206.3,206.22,7.50364555]
[1757068297645,5.39027109,206.3,206.23,7.47]
[1757068298448,5.39027109,206.3,206.24,4.3634]
[1757068298846,5.39027109,206.3,206.25,7.47]
[1757068299043,5.39027109,206.3,206.25,4.3631]
[1757068299449,5.39027109,206.3,206.26,7.47]
[1757068300144,5.39027109,206.3,206.25,4.3631]
[1757068300947,5.39027109,206.3,206.26,7.47]
[1757068301147,7.39,206.31,206.25,4.3631]
[1757068301344,7.39,206.31,206.26,7.47]
[1757068301751,7.39,206.31,206.25,4.3631]
[1757068302050,7.39,206.31,206.26,0.0348776]
[1757068302653,7.39,206.31,206.27,7.47]
[1757068302852,7.39,206.34,206.26,0.0348776]
[1757068303156,2.07029986,206.32,206.26,0.0348776]
[1757068303457,9.46029986,206.32,206.26,0.0348776]
[1757068303858,7.39,206.32,206.26,0.0348776]
[1757068307058,9.46029986,206.32,206.26,0.0348776]
[1757068309456,8.0,206.28,206.26,0.0348776]
[1757068309856,2.07029986,206.29,206.26,0.0348776]
[1757068310056,8.0,206.28,206.26,0.0348776]
[1757068310459,2.07029986,206.29,206.26,0.0348776]
[1757068311456,8.0,206.29,206.26,0.0348776]
[1757068311656,2.07029986,206.3,206.26,0.0348776]
[1757068312155,8.0,206.29,206.26,0.0348776]
[1757068312356,2.07029986,206.3,206.26,0.0348776]
[1757068312861,8.0,206.32,206.26,7.8748776]
[1757068314964,8.0,206.35,206.26,7.8748776]
[1757068316261,8.0,206.36,206.26,12.2377776]
[1757068316568,8.0,206.36,206.27,7.84]
[1757068317862,8.0,206.36,206.28,4.3625]
[1757068318057,5.39027109,206.38,206.29,7.84]
[1757068318761,5.39027109,206.38,206.32,7.84]
[1757068320764,5.39027109,206.38,206.32,12.2016]
[1757068320968,5.39027109,206.38,206.32,4.3616]
[1757068321169,8.0,206.39,206.33,7.84]
[1757068321468,5.39027109,206.46,206.34,4.3613]
[1757068321663,8.0,206.44,206.35,7.84]
[1757068322070,8.0,206.44,206.37,0.03199343]
[1757068323168,8.0,206.44,206.38,7.84]
[1757068331475,1.32262075,206.43,206.38,7.84]
[1757068331680,8.0,206.42,206.38,7.84]
[1757068332072,1.32262075,206.43,206.38,7.84]
[1757068332372,8.0,206.42,206.38,7.84]
[1757068334875,9.32262075,206.45,206.38,7.84]
[1757068335575,1.32262075,206.47,206.4,7.84]
[1757068336275,1.32262075,206.47,206.41,0.03157417]
[1757068336476,8.0,206.48,206.41,7.87157417]
[1757068336677,9.32262075,206.48,206.41,7.87157417]
[1757068338580,7.93,206.45,206.41,0.03157417]
[1757068338774,7.93,206.45,206.41,8.06157417]
[1757068338972,7.93,206.45,206.42,8.03]
[1757068339279,1.32262075,206.46,206.42,8.03]
[1757068339482,1.32262075,206.46,206.41,0.03157417]
[1757068339679,9.25262075,206.48,206.42,8.03]
[1757068342682,7.93,206.45,206.41,0.03157417]
[1757068342880,9.25262075,206.44,206.41,0.03157417]
[1757068343980,7.93,206.44,206.41,0.03157417]
[1757068344181,7.93,206.44,206.41,8.06157417]
[1757068344782,7.93,206.45,206.41,8.06157417]
[1757068345378,1.32262075,206.46,206.41,8.06157417]
[1757068345682,7.93,206.45,206.41,8.06157417]
[1757068346684,1.32262075,206.46,206.41,0.03157417]
[1757068346888,7.93,206.45,206.41,0.03157417]
[1757068347081,7.93,206.43,206.41,0.03157417]
[1757068347784,1.32262075,206.44,206.41,8.06157417]
[1757068348278,7.93,206.47,206.41,0.03157417]
[1757068348478,9.25262075,206.47,206.41,8.06157417]
[1757068350982,7.93,206.44,206.41,0.03157417]
[1757068351386,1.32262075,206.45,206.42,8.03]
[1757068351785,9.25262075,206.45,206.42,8.03]
[1757068353184,1.32262075,206.45,206.41,0.03157417]
[1757068353684,7.93,206.44,206.41,8.06157417]
[1757068353985,1.32262075,206.45,206.41,0.03157417]
[1757068354284,7.93,206.44,206.41,0.03157417]
[1757068354679,0.84329904,206.51,206.41,0.03157417]
[1757068354886,1.32262075,206.48,206.41,8.06157417]
[1757068356488,9.25262075,206.48,206.41,8.06157417]
[1757068359283,7.93,206.48,206.41,8.06157417]
[1757068363380,1.32262075,206.47,206.41,8.06157417]
[1757068363586,7.93,206.44,206.41,8.06157417]
[1757068364889,7.93,206.44,206.41,0.03157417]
[1757068365289,7.93,206.46,206.42,8.03]
[1757068365690,1.32262075,206.47,206.42,8.03]
[1757068365991,7.93,206.46,206.42,8.03]
[1757068367290,7.93,206.52,206.41,8.06157417]
[1757068367590,9.25262075,206.47,206.41,8.06157417]
[1757068368291,7.93,206.47,206.41,8.06157417]
[1757068368592,9.25262075,206.47,206.41,8.06157417]
[1757068369887,7.93,206.47,206.41,8.06157417]
[1757068376293,7.86,206.45,206.41,0.03157417]
[1757068376598,7.86,206.43,206.41,0.03157417]
[1757068377396,1.32262075,206.44,206.41,0.03157417]
[1757068377700,7.86,206.43,206.41,0.03157417]
[1757068378400,1.32262075,206.44,206.41,0.03157417]
[1757068378593,7.86,206.43,206.41,0.03157417]
[1757068378793,7.86,206.51,206.41,0.03157417]
[1757068379003,7.86,206.43,206.41,0.03157417]
[1757068379702,1.32262075,206.44,206.41,0.03157417]
[1757068380006,7.86,206.43,206.41,0.03157417]
[1757068380601,7.86,206.44,206.41,8.02157417]
[1757068381805,1.32262075,206.46,206.41,8.02157417]
[1757068382508,7.86,206.45,206.41,0.03157417]
[1757068382909,1.32262075,206.46,206.41,0.03157417]
[1757068383310,7.86,206.45,206.41,0.03157417]
[1757068383808,1.32262075,206.46,206.41,0.03157417]
[1757068384110,1.32262075,206.44,206.41,0.03157417]
[1757068384311,7.86,206.43,206.41,0.03157417]
[1757068385011,1.32262075,206.44,206.41,0.03157417]
[1757068385405,7.86,206.43,206.41,0.03157417]
[1757068386207,7.86,206.43,206.41,8.02157417]
[1757068386407,7.86,206.45,206.41,8.02157417]
[1757068386604,1.32262075,206.46,206.41,8.02157417]
[1757068386811,7.86,206.45,206.41,8.02157417]
[1757068388514,1.32262075,206.46,206.41,8.02157417]
[1757068388914,7.86,206.45,206.42,7.99]
[1757068391913,1.32262075,206.47,206.41,0.03157417]
[1757068392222,7.86,206.48,206.42,7.99]
[1757068392514,1.32262075,206.5,206.42,7.99]
[1757068393218,14.57289184,206.51,206.42,9.31262075]
[1757068393418,13.25027109,206.51,206.42,7.99]
[1757068394821,13.25027109,206.51,206.42,4.3596]
[1757068395019,13.25027109,206.51,206.43,7.99]
[1757068395820,7.86,206.51,206.43,7.99]
[1757068401717,5.39027109,206.53,206.44,4.3591]
[1757068401922,5.39027109,206.53,206.43,7.52]
[1757068402325,5.39027109,206.53,206.46,0.03116436]
[1757068402620,5.39027109,206.53,206.47,7.52]
[1757068403326,7.84,206.52,206.46,0.03116436]
[1757068404021,7.84,206.52,206.47,7.52]
[1757068404224,7.84,206.52,206.46,7.55116436]
[1757068409228,7.84,206.57,206.46,7.55116436]
[1757068413537,7.84,206.57,206.46,11.90986436]
[1757068413833,7.84,206.57,206.47,7.52]
[1757068418734,7.84,206.57,206.48,4.3582]
[1757068418932,7.84,206.57,206.49,7.52]
[1757068421236,7.84,206.57,206.51,0.03161008]
[1757068422436,9.90501777,206.57,206.51,0.03161008]
[1757068423030,7.84,206.57,206.51,0.03161008]
[1757068429647,7.76,206.61,206.52,7.46]
[1757068432340,7.76,206.61,206.52,11.8175]
[1757068432540,7.76,206.62,206.52,11.8175]
[1757068432742,9.82501777,206.63,206.52,11.8175]
[1757068432935,7.76,206.62,206.53,4.3572]
[1757068433145,7.76,206.62,206.55,0.03125195]
[1757068438751,7.76,206.6,206.55,0.03125195]
[1757068440551,9.82501777,206.6,206.55,0.03125195]
[1757068440952,9.82501777,206.6,206.5,7.46]
[1757068441355,9.85647684,206.6,206.5,7.46]
[1757068442153,7.79145907,206.6,206.5,7.46]
[1757068442655,7.79145907,206.6,206.51,7.46]
[1757068442957,7.76,206.6,206.51,7.46]
[1757068443257,7.76,206.6,206.52,7.46]
[1757068443456,0.03505966,206.58,206.52,7.46]
[1757068443755,0.03505966,206.58,206.52,11.8174]
[1757068443946,0.03505966,206.58,206.52,4.3574]
[1757068444550,0.03505966,206.58,206.53,7.46]
[1757068444756,0.03505966,206.58,206.52,4.3574]
[1757068445155,0.03505966,206.58,206.54,4.3571]
[1757068445549,0.03505966,206.58,206.55,7.46]
[1757068445748,0.03505966,206.58,206.56,7.46]
[1757068446256,0.03505966,206.58,206.57,11.8165]
[1757068446462,0.03505966,206.58,206.57,7.94]
[1757068447560,5.39027109,206.62,206.57,7.94]
[1757068447756,13.15027109,206.69,206.57,7.46]
[1757068448365,7.76,206.67,206.57,7.46]
[1757068448863,7.76,206.67,206.6,7.49061073]
[1757068450459,7.76,206.67,206.6,0.03061073]
[1757068450763,7.45528886,206.69,206.6,0.03061073]
[1757068450764,7.76,206.62,206.6,0.03061073]
[1757068450966,2.06501777,206.63,206.6,0.03061073]
[1757068451361,2.06501777,206.63,206.52,4.05115181]
[1757068451563,7.76,206.64,206.52,4.05115181]
[1757068451767,7.76,206.59,206.52,4.05115181]
[1757068452271,7.76,206.56,206.52,4.05115181]
[1757068452566,7.76,206.56,206.49,4.05115181]
[1757068453161,7.76,206.56,206.5,7.46]
[1757068453360,0.0314014,206.55,206.49,4.05115181]
[1757068453563,0.0314014,206.55,206.5,7.46]
[1757068453869,7.7914014,206.55,206.49,11.51115181]
[1757068454170,0.0314014,206.55,206.49,11.51115181]
[1757068454772,0.0314014,206.55,206.5,7.46]
[1757068454970,0.0314014,206.55,206.49,4.05115181]
[1757068455275,0.0314014,206.55,206.5,1.32071141]
[1757068455767,0.0314014,206.55,206.51,7.46]
[1757068455975,0.0314014,206.55,206.53,7.46]
[1757068456174,0.0314014,206.55,206.5,1.32071141]
[1757068456375,0.0314014,206.55,206.52,7.46]
[1757068456676,0.0314014,206.55,206.51,1.32071141]
[1757068456864,0.0314014,206.55,206.49,9.72986322]
[1757068457069,0.0314014,206.55,206.49,11.51115181]
[1757068457266,1.35211281,206.55,206.49,11.51115181]
[1757068457466,9.11211281,206.55,206.49,11.51115181]
[1757068457670,1.32071141,206.53,206.48,4.05115181]
[1757068457871,1.32071141,206.51,206.48,4.05115181]
[1757068458074,8.97071141,206.49,206.45,5.36651087]
[1757068458267,8.97071141,206.46,206.45,5.36651087]
[1757068458466,8.97071141,206.46,206.43,8.17154327]
[1757068458672,8.97071141,206.44,206.37,10.88541206]
[1757068458877,7.65,206.38,206.37,10.88541206]
[1757068459072,7.65,206.41,206.37,10.88541206]
[1757068459273,1.32071141,206.42,206.37,10.88541206]
[1757068459472,7.65,206.41,206.37,18.42541206]
[1757068459873,1.32071141,206.44,206.37,18.42541206]
[1757068460476,7.65,206.45,206.37,19.74612347]
[1757068460678,0.03099907,206.43,206.37,19.74612347]
[1757068460881,0.03099907,206.43,206.4,7.54]
[1757068461075,0.03099907,206.43,206.39,1.32071141]
[1757068461680,0.03099907,206.43,206.4,7.54]
[1757068462481,0.03099907,206.43,206.39,1.32071141]
[1757068462681,0.03099907,206.43,206.42,7.54]
[1757068463979,8.97071141,206.54,206.42,8.02]
[1757068464178,8.97071141,206.54,206.46,7.54]
[1757068465182,7.65,206.54,206.48,0.03199329]
[1757068465381,7.65,206.54,206.48,1.3527047]
[1757068466585,1.32071141,206.56,206.49,7.54]
[1757068467179,317.25027109,206.57,206.49,7.54]
[1757068467880,311.86,206.57,206.49,7.54]
[1757068469086,7.65,206.56,206.49,7.54]
[1757068470281,8.97071141,206.56,206.48,0.03199329]
[1757068470584,7.65,206.53,206.48,0.03199329]
[1757068470783,1.32071141,206.53,206.48,0.03199329]
[1757068471079,7.65,206.52,206.48,0.03199329]
[1757068472080,1.32071141,206.55,206.48,0.03199329]
[1757068472273,7.65,206.54,206.48,0.03199329]
[1757068478587,7.65,206.51,206.48,0.03199329]
[1757068479287,1.32071141,206.52,206.48,0.03199329]
[1757068479984,7.65,206.51,206.48,0.03199329]
[1757068480389,1.32071141,206.52,206.48,0.03199329]
[1757068480988,1.32071141,206.51,206.48,0.03199329]
[1757068481590,1.32071141,206.53,206.48,0.03199329]
[1757068482287,7.65,206.52,206.48,0.03199329]
[1757068482586,1.32071141,206.51,206.48,0.03199329]
[1757068482981,7.65,206.5,206.48,0.03199329]
[1757068483187,1.32071141,206.51,206.48,0.03199329]
[1757068483791,8.97071141,206.49,206.37,7.54]
[1757068484090,7.65,206.45,206.37,7.54]
[1757068484895,1.32071141,206.44,206.37,7.54]
[1757068485392,0.03057346,206.43,206.37,7.54]
[1757068487696,0.03057346,206.43,206.37,11.9005]
[1757068488996,0.03057346,206.43,206.37,7.54]
[1757068490099,9.06071141,206.42,206.34,8.08]
[1757068492201,7.74,206.42,206.34,12.4412]
[1757068492500,7.74,206.4,206.34,8.08]
[1757068500704,1.32071141,206.39,206.34,8.08]
[1757068500904,7.74,206.38,206.34,8.08]
[1757068501104,7.74,206.38,206.31,8.08]
[1757068501603,9.06071141,206.43,206.33,8.08]
[1757068502006,9.06071141,206.43,206.35,8.08]
[1757068502305,7.74,206.43,206.35,8.08]
[1757068502504,9.06071141,206.47,206.38,1.32071141]
[1757068502706,1.32071141,206.45,206.35,1.32071141]
[1757068502902,1.32071141,206.43,206.35,8.08]
[1757068503102,1.32071141,206.41,206.35,8.08]
[1757068503805,0.03051651,206.4,206.33,8.08]
[1757068504407,0.03051651,206.4,206.33,12.4415]
[1757068504608,0.03051651,206.4,206.33,8.08]
[1757068506007,1.32071141,206.39,206.33,8.08]
[1757068506507,7.77051651,206.4,206.33,8.08]
[1757068506703,1.32071141,206.39,206.33,8.08]
[1757068506908,0.03051651,206.4,206.35,1.32071141]
[1757068507502,0.03051651,206.4,206.36,4.3608]
[1757068508106,0.03051651,206.4,206.37,8.08]
[1757068508308,0.03051651,206.4,206.37,1.32071141]
[1757068508509,0.03051651,206.4,206.38,8.08]
[1757068509009,0.03051651,206.4,206.37,8.08]
[1757068509405,0.03051651,206.4,206.36,1.32071141]
[1757068510007,0.03051651,206.4,206.38,4.3604]
[1757068510214,312.08,206.51,206.39,8.08]
[1757068510215,9.06071141,206.48,206.39,8.08]
[1757068510416,7.74,206.48,206.41,8.08]
[1757068511417,9.09071141,206.52,206.42,1.32071141]
[1757068511614,5.39027109,206.55,206.45,8.08]
[1757068511615,1.32071141,206.54,206.45,8.08]
[1757068512216,1.32071141,206.54,206.47,0.03171173]
[1757068512713,1.32071141,206.54,206.47,4.39021173]
[1757068512915,5.39027109,206.55,206.48,8.08]
[1757068513417,5.39027109,206.55,206.51,8.08]
[1757068513916,5.39027109,206.55,206.5,4.3579]
[1757068514115,5.39027109,206.55,206.51,8.08]
[1757068515208,5.39027109,206.55,206.5,4.3579]
[1757068515809,5.39027109,206.55,206.51,8.08]
[1757068516009,5.39027109,206.55,206.5,4.3579]
[1757068516614,5.39027109,206.55,206.51,8.08]
[1757068517117,5.39027109,206.55,206.5,4.3579]
[1757068517318,7.77,206.58,206.51,8.08]
[1757068518120,7.77,206.58,206.52,0.0330811]
[1757068520515,434.16381887,206.63,206.53,8.13]
[1757068520719,7.77,206.62,206.53,8.13]
[1757068523820,2.06381887,206.61,206.53,8.13]
[1757068524123,7.77,206.6,206.53,8.13]
[1757068528121,2.06381887,206.59,206.52,0.0330811]
[1757068528323,7.77,206.58,206.52,0.0330811]
[1757068529428,7.75,206.55,206.52,0.0330811]
[1757068529820,2.06381887,206.56,206.52,0.0330811]
[1757068530029,7.75,206.55,206.52,0.0330811]
[1757068530227,2.06381887,206.56,206.52,0.0330811]
[1757068530432,7.75,206.55,206.52,0.0330811]
[1757068530819,2.06381887,206.53,206.42,12.14924258]
[1757068531028,7.75,206.51,206.42,12.14924258]
[1757068531430,119.88,206.52,206.42,12.14924258]
[1757068532223,7.75,206.48,206.42,12.14924258]
[1757068532424,7.75,206.48,206.42,4.01924258]
[1757068534532,2.06381887,206.47,206.42,4.01924258]
[1757068535031,7.75,206.43,206.42,4.01924258]
[1757068535925,0.0306306,206.45,206.39,8.13]
[1757068536324,18.05,206.46,206.39,8.13]
[1757068536525,0.03520404,206.44,206.39,8.13]
[1757068536731,0.03520404,206.44,206.38,12.4905]
[1757068537031,0.03520404,206.44,206.38,8.13]
[1757068540527,7.78520404,206.44,206.38,8.13]
[1757068541232,7.75,206.41,206.3,8.13]
[1757068541933,0.03365197,206.38,206.3,8.13]
[1757068542126,0.03365197,206.38,206.31,4.01924258]
[1757068542930,0.03365197,206.38,206.32,8.13]
[1757068543536,0.03365197,206.38,206.34,4.3614]
[1757068543737,0.03365197,206.38,206.31,4.01924258]
[1757068543930,0.03365197,206.38,206.32,8.13]
[1757068544128,0.03365197,206.38,206.32,12.4917]
[1757068544436,0.03365197,206.38,206.33,8.13]
[1757068544737,0.03365197,206.38,206.32,8.13]
[1757068545033,0.03365197,206.38,206.33,4.3614]
[1757068545738,0.03365197,206.38,206.34,4.3612]
[1757068545935,0.03365197,206.38,206.35,8.13]
[1757068546136,0.03365197,206.38,206.32,10.19381887]
[1757068546337,0.03365197,206.38,206.32,2.06381887]
[1757068546536,0.03365197,206.38,206.33,8.13]
[1757068546840,0.03365197,206.38,206.35,4.361]
[1757068547241,0.03365197,206.38,206.36,8.13]
[1757068547739,0.03365197,206.38,206.35,4.361]
[1757068548141,0.03365197,206.38,206.37,8.12]
[1757068550439,7.36,206.49,206.4,8.12]
[1757068551335,7.36,206.49,206.41,4.3598]
[1757068551645,7.36,206.49,206.42,0.03454276]
[1757068552644,7.36,206.49,206.43,8.12]
[1757068558546,7.36,206.49,206.42,0.03454276]
[1757068562352,7.36,206.49,206.42,8.15454276]
[1757068565154,7.36,206.49,206.42,12.51414276]
[1757068567658,7.36,206.49,206.43,4.3594]
[1757068567965,7.36,206.49,206.44,8.12]
[1757068568251,7.36,206.49,206.43,4.3594]
[1757068568457,7.36,206.49,206.44,8.12]
[1757068568654,7.36,206.49,206.43,4.3594]
[1757068569052,7.36,206.49,206.44,8.12]
[1757068569249,7.36,206.49,206.43,4.3594]
[1757068569453,7.36,206.49,206.44,8.12]
[1757068569854,7.36,206.55,206.45,8.12]
[1757068570260,7.36,206.55,206.46,4.3588]
[1757068570558,7.36,206.55,206.48,0.03289746]
[1757068572759,7.36,206.55,206.49,8.12]
[1757068573862,7.36,206.55,206.48,0.03289746]
[1757068574358,9.42381887,206.55,206.48,0.03289746]
[1757068575563,7.36,206.49,206.48,0.03289746]
[1757068580665,7.65,206.51,206.48,0.03289746]
[1757068580962,7.65,206.51,206.48,7.56289746]
[1757068581165,1.32185248,206.54,206.48,0.03289746]
[1757068581566,7.65,206.53,206.48,0.03289746]
[1757068581761,7.65,206.51,206.48,0.03289746]
[1757068581961,1.32185248,206.52,206.48,0.03289746]
[1757068584070,7.65,206.51,206.48,0.03289746]
[1757068584261,7.65,206.49,206.48,0.03289746]
[1757068585664,8.13,206.49,206.48,0.03289746]
[1757068586770,8.13,206.49,206.39,11.54924258]
[1757068586966,7.65,206.46,206.39,11.54924258]
[1757068588072,0.03285401,206.45,206.39,11.54924258]
[1757068588367,0.03285401,206.45,206.39,15.90944258]
[1757068588673,0.03285401,206.45,206.4,7.53]
[1757068588877,0.03285401,206.45,206.39,5.34109506]
[1757068589172,0.03285401,206.45,206.4,7.53]
[1757068589772,0.03285401,206.45,206.41,8.85185248]
[1757068589972,0.03285401,206.45,206.41,1.32185248]
[1757068590172,0.03285401,206.45,206.42,7.53]
[1757068590372,0.03285401,206.45,206.44,7.53]
[1757068595474,0.03285401,206.45,206.41,7.53]
[1757068595771,0.03285401,206.45,206.4,5.34109506]
[1757068595974,7.68285401,206.45,206.41,7.53]
[1757068596175,7.68285401,206.45,206.4,5.34109506]
[1757068596378,7.68285401,206.45,206.41,7.53]
[1757068596572,7.68285401,206.45,206.4,5.34109506]
[1757068596876,0.03285401,206.45,206.4,4.01924258]
[1757068597477,7.65,206.44,206.4,11.54924258]
[1757068597973,0.03285401,206.45,206.4,7.53]
[1757068598876,7.65,206.44,206.4,7.53]
[1757068599078,0.03285401,206.45,206.4,7.53]
[1757068599276,7.65,206.43,206.4,7.53]
[1757068599476,7.65,206.43,206.37,11.54924258]
[1757068602780,7.65,206.43,206.37,7.53]
[1757068603280,1.32185248,206.42,206.37,7.53]
[1757068603674,7.65,206.41,206.37,7.53]
[1757068603870,7.65,206.39,206.34,11.54924258]
[1757068604080,1.32185248,206.4,206.34,11.54924258]
[1757068604778,0.03251603,206.39,206.34,11.54924258]
[1757068604980,7.65,206.38,206.34,11.54924258]
[1757068606476,0.03251603,206.39,206.35,7.53]
[1757068606681,0.03251603,206.39,206.34,4.01924258]
[1757068606978,7.68251603,206.39,206.35,7.53]
[1757068608983,0.03251603,206.39,206.35,7.53]
[1757068609182,7.78,206.38,206.35,7.53]
[1757068609788,1.32185248,206.36,206.29,7.99]
[1757068609980,9.10185248,206.36,206.29,7.99]
[1757068610985,5.39027109,206.46,206.3,1.32185248]
[1757068611184,5.39027109,206.46,206.31,7.99]
[1757068611185,7.78,206.4,206.31,7.99]
[1757068611388,7.78,206.4,206.32,1.32185248]
[1757068611578,7.81216978,206.4,206.33,7.99]
[1757068612379,0.03216978,206.4,206.34,1.32185248]
[1757068612585,0.03216978,206.4,206.35,7.99]
[1757068613480,0.03216978,206.4,206.37,7.99]
[1757068614381,0.03216978,206.4,206.36,1.32185248]
[1757068614581,0.03216978,206.4,206.37,7.99]
[1757068614781,0.03216978,206.4,206.36,1.32185248]
[1757068615181,0.03216978,206.4,206.39,7.99]
[1757068620587,0.03216978,206.4,206.36,7.99]
[1757068620792,0.03216978,206.4,206.35,1.32185248]
[1757068620987,0.03216978,206.4,206.34,7.99]
[1757068622194,0.03216978,206.4,206.35,1.32185248]
[1757068622394,0.03216978,206.4,206.36,7.99]
[1757068622786,0.03216978,206.4,206.38,7.99]
[1757068623793,0.03216978,206.4,206.38,9.31185248]
[1757068624494,0.03216978,206.4,206.39,1.32185248]
[1757068624695,0.03216978,206.4,206.39,9.31185248]
[1757068626502,5.39027109,206.49,206.41,7.99]
[1757068627405,1.32185248,206.46,206.37,1.32185248]
[1757068627601,7.78,206.45,206.38,7.99]
[1757068627802,7.78,206.45,206.39,0.03144832]
[1757068629206,1.32185248,206.44,206.39,0.03144832]
[1757068629407,7.78,206.43,206.39,0.03144832]
[1757068629607,1.32185248,206.44,206.39,0.03144832]
[1757068630207,7.78,206.43,206.39,0.03144832]
[1757068630407,7.78,206.52,206.39,0.03144832]
[1757068630608,7.78,206.43,206.39,8.02144832]
[1757068630807,7.78,206.43,206.39,7.99]
[1757068631107,7.78,206.43,206.39,8.02222769]
[1757068633009,7.78,206.49,206.42,7.99]
[1757068633205,7.78,206.49,206.43,1.32185248]
[1757068634004,14.49212357,206.53,206.45,1.32185248]
[1757068634308,13.17027109,206.53,206.46,7.99]
[1757068634507,13.17027109,206.53,206.47,0.03101059]
[1757068636112,7.78,206.53,206.47,0.03101059]
[1757068636325,9.10185248,206.53,206.47,0.03101059]
[1757068637608,7.78,206.53,206.47,0.03101059]
[1757068637808,0.03458513,206.52,206.47,0.03101059]
[1757068638109,7.78,206.51,206.47,8.02101059]
[1757068639614,7.78,206.51,206.48,7.45]
[1757068641608,0.03458513,206.52,206.47,0.03101059]
[1757068642005,0.03458513,206.52,206.48,7.45]
[1757068643214,0.03458513,206.52,206.47,4.38951059]
[1757068643415,0.03458513,206.52,206.48,7.45]
[1757068643618,0.03458513,206.52,206.47,4.38951059]
[1757068644213,0.03458513,206.52,206.48,7.45]
[1757068644414,0.03458513,206.52,206.47,4.38951059]
[1757068644715,0.03458513,206.52,206.47,0.03101059]
[1757068645212,0.03458513,206.52,206.48,7.45]
[1757068645417,0.03458513,206.52,206.47,0.03101059]
[1757068646316,0.03458513,206.52,206.48,7.45]
[1757068646517,0.03458513,206.52,206.47,0.03101059]
[1757068647018,0.03458513,206.52,206.48,7.45]
[1757068647315,0.03458513,206.52,206.47,0.03101059]
[1757068647919,0.03458513,206.52,206.48,7.45]
[1757068648119,0.03458513,206.52,206.47,0.03101059]
[1757068648319,0.03458513,206.52,206.48,7.45]
[1757068648621,0.03458513,206.52,206.47,0.03101059]
[1757068649015,0.03458513,206.52,206.48,7.45]
[1757068649619,7.47458513,206.52,206.48,7.45]
[1757068650520,7.44,206.51,206.48,7.45]
[1757068651915,7.44,206.51,206.47,0.03101059]
[1757068652123,0.03458513,206.52,206.47,0.03101059]
[1757068652715,0.03458513,206.52,206.47,7.48101059]
[1757068653323,7.44,206.51,206.47,7.48101059]
[1757068654117,7.44,206.51,206.47,0.03101059]